Cogmind - Beta 13 @@@ ROGUE MODE // 2024.05.08 @ 10:00:10 Player: mewcatx Result: Destroyed by G-47 Trooper with Particle Gun Performance ------------- Evolutions (0) 0 Regions Visited (2) 400 Robots Destroyed (28) 140 Value Destroyed (632) 632 Prototype IDs (1) 20 Alien Tech Used (0) 0 Bonus (0) 0 TOTAL SCORE: 1192 Bonus ------- None Cogmind --------- Core Integrity 0/250 Matter 288/300 Energy 125/125 System Corruption 0% Temperature Hot (226) Movement Rolling (100) Location -10/Mines Parts ------- > --- POWER (1) -------- Light Ion Engine > --- PROPULSION (2) --- Compact Wheel Compact Wheel > --- UTILITY (2) ------ Large Storage Unit > --- WEAPON (2) ------- Advanced Beam Cannon Light Assault Rifle > --- INVENTORY (15) --- Light Ion Engine Improved Hover Unit Improved Hover Unit Improved Hover Unit Improved Hover Unit Medium Matter Pod (6) Light Armor Plating Light Armor Plating Hacking Suite Rocket Launcher Peak State ------------ > --- POWER ------------ Light Ion Engine > --- PROPULSION ------- Compact Wheel Compact Wheel > --- UTILITY ---------- Large Storage Unit Light Armor Plating > --- WEAPON ----------- Advanced Beam Cannon Rocket Launcher > --- INVENTORY -------- Light Ion Engine Improved Hover Unit Improved Hover Unit Improved Hover Unit Improved Hover Unit Medium Matter Pod Light Armor Plating Light Armor Plating Hacking Suite Light Assault Rifle [Rating: 11] Favorites ----------- Power Ion Engine Engine Ion Engine Propulsion Light Treads Treads Light Treads Wheel Compact Wheel Hover Unit Improved Hover Unit Utility Small Storage Unit Device Heat Sink Storage Small Storage Unit Protection Light Armor Plating Weapon Light Assault Rifle Energy Gun Medium Laser Energy Cannon Beam Cannon Ballistic Gun Light Assault Rifle Launcher Rocket Launcher Build | -11 -10 -10 ------- Run | Yrd Mat Min Slots Evolved . | . . . Power . | . . . Propulsion . | . . . Utility . | . . . Weapon . | . . . Parts Attached 36 | 6 28 2 Power 4 | 1 3 . Engine 4 | 1 3 . Core . | . . . Reactor . | . . . Propulsion 11 | 2 9 . Treads 4 | 2 2 . Leg . | . . . Wheel 5 | . 5 . Hover 2 | . 2 . Flight . | . . . Utility 7 | 1 6 . Device 2 | . 2 . Storage 2 | 1 1 . Processor . | . . . Hackware . | . . . Protection 3 | . 3 . Artifact . | . . . Weapon 14 | 2 10 2 Energy Gun 7 | 2 5 . Energy Cannon 2 | . 2 . Ballistic Gun 4 | . 3 1 Ballistic Cannon . | . . . Launcher 1 | . . 1 Special Weapon . | . . . Impact Weapon . | . . . Slashing Weapon . | . . . Piercing Weapon . | . . . Special Melee Weapon . | . . . Unidentified Prototypes 1 | . 1 . Parts Lost 5 | . 4 1 Power . | . . . Propulsion 3 | . 3 . Utility 1 | . . 1 Weapon 1 | . 1 . Highest Loss Streak 2 | . 2 1 To Critical Strikes . | . . . Average Slot Usage (%) 96 | . 96 99 Engine 14 | . 14 14 Treads 14 | . 15 . Wheel 12 | . 10 28 Device 4 | . 5 . Storage 14 | . 14 14 Protection 6 | . 6 13 Energy Gun 13 | . 14 . Energy Cannon 7 | . 6 14 Ballistic Gun 6 | . 6 6 Naked Turns . | . . . Heaviest Build 34 | 13 31 34 Greatest Support 40 | 40 40 32 Greatest Overweight (x) 4 | . 4 1 Average Overweight (x) . | . . . Largest Inventory Capacity 15 | 8 15 15 Average Capacity 8 | 7 8 15 Most Carried 10 | 6 9 10 Average Carried 7 | 3 7 9 Final Capacity 15 | 8 15 15 Final Carried 10 | 6 9 10 Class Distribution -------------------- 95% | Mutant 4% | Scavenger-Mutant Dominant Class ---------------- Mutant | -10/Materials Mutant | -10/Mines Resources | -11 -10 -10 ----------- Run | Yrd Mat Min Matter Collected 676 | 260 390 26 Remotely . | . . . Salvage Created 869 | . 839 30 Parts 49 | . 48 1 Haulers Intercepted . | . . . Recyclers Shooed . | . . . Parts Field Recycled . | . . . Retrieved Matter . | . . . Parts Self-Destructed . | . . . Prevented . | . . . Kills | -11 -10 -10 ------- Run | Yrd Mat Min Combat Hostiles Destroyed 19 | . 18 1 Guns 15 | . 15 . Cannons 2 | . 2 . AOE 1 | . 1 . Classes Destroyed 8 | . 8 . Worker 1 | . 1 . Builder 3 | . 3 . Recycler 1 | . 1 . Mechanic 1 | . 1 . Operator 2 | . 2 . Watcher 1 | . 1 . Swarmer 5 | . 5 . Grunt 14 | . 13 1 Best Kill Streak 6 | . 6 1 Combat Bots Only 5 | . 5 1 Max Kills in Single Turn 2 | . 2 1 Gunslinging . | . . . Exploded 1 | . 1 . Melee . | . . . Uniques/NPCs Destroyed . | . . . Combat | -11 -10 -10 -------- Run | Yrd Mat Min Hostile Shots Fired 118 | . 94 24 Missed 22 | . 16 6 Damage Taken 1187 | . 936 251 Core 254 | . 212 42 Absorbed by Shields . | . . . Core Remaining (%) 100 | 100 . . Volleys Fired 89 | . 81 8 Largest 2 | . 2 2 Hottest 105 | . 105 88 Shots Fired 174 | . 159 15 Gun 125 | . 118 7 Cannon 49 | . 41 8 Launcher . | . . . Special . | . . . Kinetic 50 | . 43 7 Thermal 96 | . 88 8 Explosive . | . . . Electromagnetic 28 | . 28 . Robot Hit Streak 11 | . 11 2 Robot Miss Streak 5 | . 5 5 Penetration Max . | . . . Secondary Targets . | . . . Shots Hit Robots 98 | . 93 5 Core Hits 44 | . 43 1 Critical Kills 2 | . 1 1 Critical Parts Destroyed . | . . . Critical Strikes 3 | . 2 1 Burn 1 | . 1 . Meltdown 2 | . 1 1 Melee Attacks . | . . . Impact . | . . . Slashing . | . . . Piercing . | . . . Sneak Attacks . | . . . Combat Hostiles . | . . . Follow-up Attacks . | . . . Damage Inflicted 1465 | . 1386 79 Guns 857 | . 842 15 Cannons 460 | . 396 64 Explosions 148 | . 148 . Melee . | . . . Ramming . | . . . Kinetic 209 | . 194 15 Thermal 912 | . 848 64 Explosive . | . . . Electromagnetic 344 | . 344 . Impact . | . . . Slashing . | . . . Piercing . | . . . Highest Corruption . | . . . Average Corruption . | . . . Corruption Purged . | . . . Corruption Blocked . | . . . Overload Shots . | . . . Overflow Damage 12 | . 12 . Projectiles 6 | . 6 . Explosions 6 | . 6 . Melee . | . . . Knockbacks . | . . . Impact . | . . . Kinetic . | . . . Secondary . | . . . Self-Inflicted Damage 101 | . 101 . Shots 3 | . 3 . Rammed . | . . . Targets Rammed . | . . . Kicked . | . . . Crushed . | . . . Highest Temperature 573 | . 573 237 Average Temperature 109 | . 104 158 Received Heat Transfer 417 | . 276 141 Effects 17 | . 15 2 Shutdowns 2 | . 2 . Energy Bleed 1 | . 1 . Interference 2 | . . 2 Matter Decay 2 | . 2 . Short Circuit 1 | . 1 . Damage (minor) 1 | . 1 . Damage (major) 7 | . 7 . Damage (core) 1 | . 1 . Siege Activations . | . . . Robots Corrupted . | . . . Combat Hostiles . | . . . Parts Fried . | . . . Impact Corruptions . | . . . Robots Melted 2 | . 1 1 Combat Hostiles 1 | . . 1 Parts Melted 3 | . 1 2 Heat Transferred 1955 | . 1844 111 Parts Sabotaged . | . . . Parts Stolen . | . . . Parts Stripped . | . . . Power Chain Reactions 3 | . 3 . Alert | -11 -10 -10 ------- Run | Yrd Mat Min Peak Influence 257 | . 257 140 Initial 90 | . . 90 Average 116 | . 124 99 Maximum Alert Level 1 | . 1 . Low Security (%) 78 | 100 75 100 Level 1 21 | . 24 . Level 2 . | . . . Level 3 . | . . . Level 4 . | . . . Level 5 . | . . . High Security . | . . . Max Security . | . . . Squads Dispatched 6 | . 6 . Investigation 4 | . 4 . Extermination . | . . . Reinforcement 2 | . 2 . Assault . | . . . Garrison . | . . . Intercept . | . . . Searches Triggered . | . . . Construction Impeded . | . . . Haulers Reinforced . | . . . Active Scanning Responses . | . . . Cargo Convoy Interrupts . | . . . Stealth | -11 -10 -10 --------- Run | Yrd Mat Min Distress Signals 4 | . 4 . Communications Jammed . | . . . Distress Signals . | . . . Times Spotted 49 | . 45 4 Peak Tracking Total 5 | . 5 2 Tactical Retreats 3 | . 2 1 Traps | -11 -10 -10 ------- Run | Yrd Mat Min Traps Triggered 1 | . 1 . Indirectly . | . . . Trap Hack Attempts . | . . . Triggered . | . . . Disarmed . | . . . Reprogrammed . | . . . Reused . | . . . Traps Extracted . | . . . Installed . | . . . Triggered 2 | . 2 . Machines | -11 -10 -10 ---------- Run | Yrd Mat Min Machines Disabled 1 | . 1 . Max in Single Turn 1 | . 1 . Machines Repaired . | . . . Machines Dismantled . | . . . Machines Sabotaged . | . . . Overloaded Fab Kills . | . . . Hacking | -11 -10 -10 --------- Run | Yrd Mat Min Machines Accessed 5 | . 5 . Terminals 4 | . 4 . Fabricators . | . . . Repair Stations . | . . . Recycling Units 1 | . 1 . Scanalyzers . | . . . Garrison Access . | . . . Total Hacks 11 | . 11 . Successful 4 | . 4 . Failed 6 | . 6 . Catastrophic 2 | . 2 . Database Lockouts 1 | . 1 . Manual 11 | . 11 . Terminals 10 | . 10 . Fabricators . | . . . Repair Stations . | . . . Recycling Units 1 | . 1 . Scanalyzers . | . . . Garrison Access . | . . . Terminal Hacks 2 | . 2 . Robot Analysis 1 | . 1 . Locate Traps 1 | . 1 . Fabricator Hacks . | . . . Repair Station Hacks . | . . . Recycling Unit Hacks 1 | . 1 . Report Inventory 1 | . 1 . Scanalyzer . | . . . Garrison Access Hacks . | . . . Unauthorized Hacks 1 | . 1 . Terminals 1 | . 1 . Botnet 1 | . 1 . Fabricators . | . . . Repair Stations . | . . . Recycling Units . | . . . Scanalyzers . | . . . Garrison Access . | . . . Data Cores Recovered . | . . . Used . | . . . Hacking Detections 4 | . 4 . Full Trace Events 1 | . 1 . Feedback Events . | . . . Feedback Blocked . | . . . Robot Schematics Acquired . | . . . Robots Built . | . . . Authchips . | . . . Time . | . . . Total Robot Build Rating . | . . . Part Schematics Acquired . | . . . Parts Built . | . . . Authchips . | . . . Time . | . . . Total Part Build Rating . | . . . Parts Repaired . | . . . Time . | . . . Parts Recycled . | . . . Recycled Matter . | . . . Retrieved Matter . | . . . Retrieved Components . | . . . Parts Scanalyzed . | . . . Part Schematics Acquired . | . . . Parts Damaged . | . . . Bothacking | -11 -10 -10 ------------ Run | Yrd Mat Min Used RIF Installer . | . . . Robots Hacked . | . . . Non-combat . | . . . Combat . | . . . Robot Hacks Applied . | . . . Relay Couplers Released . | . . . Fabnet Peak Effective % . | . . . Robots Rewired . | . . . Allies Hacked . | . . . Hacks Repelled . | . . . Allies | -11 -10 -10 -------- Run | Yrd Mat Min Total Allies . | . . . Largest Group . | . . . Highest-Rated Group . | . . . Highest-Rated Ally . | . . . Total Orders . | . . . Ally Attacks . | . . . Total Damage . | . . . Kills . | . . . Allies Corrupted . | . . . Allies Melted . | . . . Intel | -11 -10 -10 ------- Run | Yrd Mat Min Robot Analysis Total 1 | . 1 . Derelict Logs Recovered . | . . . Drone Launches . | . . . Drone Recoveries . | . . . Exploration | -11 -10 -10 ------------- Run | Yrd Mat Min Turns Passed 2221 | 116 1953 152 Spaces Moved 1099 | 66 930 103 Core 7 | 6 1 . Treads 272 | 60 212 . Legs . | . . . Wheels 813 | . 710 103 Hover 7 | . 7 . Flight . | . . . Fastest Speed 50 | 50 80 100 Average Speed 114 | 150 112 109 Slowest Speed 250 | 160 250 115 Overloaded Moves . | . . . Propulsion Burnouts . | . . . Robots Hopped . | . . . Cave-ins Triggered . | . . . Exploration Rate (%) 35 | 4 70 33 Regions Visited 2 Branch Regions 1 Pre-discovered Areas . | . . . Known Exits Taken . | . . . Unknown Exits Taken 2 | 1 1 . Scrap Searched 1 | . . 1 Spaces Dug . | . . . Terrain Destroyed 9 | . 9 . Melee . | . . . Projectile . | . . . AOE 9 | . 9 . Terrain Rammed . | . . . Walls Destroyed . | . . . Machines Disabled . | . . . Actions | -11 -10 -10 --------- Run | Yrd Mat Min Total 1893 | 80 1686 127 Wait 619 | 3 603 13 Move 1097 | 65 929 103 Hop . | . . . Pick Up 25 | 6 18 1 Fast Attach 20 | 6 14 . Attach 5 | . 5 . Detach 2 | . 2 . Swap 11 | . 9 2 Drop 25 | . 25 . Fire 89 | . 81 8 Melee . | . . . Ram . | . . . Kick . | . . . Crush . | . . . Escape Stasis . | . . . Rewire . | . . . Trap . | . . . Miscellaneous . | . . . Route ------- -11/Scrapyard -10/Materials (discovered 3 exits: [*Mat x2] / [*Min]) -10/Mines History --------- Turn | Location | Event 3 | -11/Scrapyard | Discovered new exit (range 15) 117 | -11/Scrapyard | Entered Materials 311 | -10/Materials | Build established: Mutant 1321 | -10/Materials | Discovered new exit (range 6) 1430 | -10/Materials | Core integrity fell below 50% 1441 | -10/Materials | Core integrity fell below 20% 1834 | -10/Materials | Discovered new exit (range 15) 1887 | -10/Materials | Central database locked down 1958 | -10/Materials | Discovered new exit (range 5) 2070 | -10/Materials | Entered Mines 2077 | -10/Mines | Received a Rocket Launcher from a helpful Derelict 2222 | -10/Mines | Destroyed by G-47 Trooper with Particle Gun Last Messages --------------- 02077_ X7-UL5(g): "Would you like a rocket launcher? I know I would if I were you, so I'm going to lend you mine." 02077_ X7-UL5(g) slips back into the shadows. 02079_ Acquired Rocket Launcher. 02133_ K-01 Serf collects debris. 02160_ Searching scrap... 02160_ Found Sml. Storage Unit. 02160_ Found 26 Matter. 02161_ Acquired 26 matter. 02199_ Overheating: System interference. 02199_ Lgt. Assault Rifle temporarily disabled. 02209_ K-01 Serf collects debris. 02214_ G-34 Mercenary suffers critical hit (Meltdown). 02214_ Aluminum Leg melted. 02217_ K-01 Serf collects debris. 02218_ Lgt. Armor Plating destroyed. 02221_ K-01 Serf collects debris. Map ----- +----------------------------------------------------+ | ?????????????????????????????????????????????????? | | ?????????????????????????????????????????????????? | | ?????????????????????????????????????????????????? | | ?????????????????????????????????????????????????? | | ?????????????????????????????????????????????????? | | ?????????????????????????????????????????????????? | | ?????????????????????????????????????????????????? | | ?????????????????????????????????????????????????? | | ?????????????????????????????????????????????????? | | ?????????????????????????????????????????????????? | | ?????????????????????????????????????????????????? | | ?????????????????????????????????????????????????? | | ?????????????????????????????????????????????????? | | ?????????????????####????????????????????????????? | | ????????????????? #????????????????????????????? | | ?????????????????# #????????????????????????????? | | ?????????????????# #????????????????????????????? | | ?????????????????# #????????????????????????????? | | ?????????????????# #????????????????????????????? | | ?????????????????# ##???????????????????????????? | | ###???############ ##??????????????????????????? | | ##??# #??????????????????????????? | | ##?# #??????????????????????????? | | #?# !########## #??????????#???????????????? | | ### #????????# ######## ##??????????????? | | #????????# ##@ #??????????????? | | #????????## !g #?????????????? | | #######?????????### #?????????????? | | #?????????????????## #????????????? | | #??????????????????## ??????????? | | ##???????????????????# ??????????? | | ##???????????????????? k ###??????????? | | ##????????????????????? ##????????????? | | ??????????????????????? ##### #?????????????? | | ?????????????????????? ##????# #????????????? | | ?????????????????????? ##?????? ????????????? | | ?????????????????????? ????????? ????????????? | | ?????????????????????? #????????????????????????? | | ????????????????????? #?????????????????????????? | | ????????????????????? #??????????????????????????? | | ?????????????????????????????????????????????????? | | ?????????????????????????????????????????????????? | | ?????????????????????????????????????????????????? | | ?????????????????????????????????????????????????? | | ?????????????????????????????????????????????????? | | ###??????????????????????????????????????????????? | | #??????????????????????????????????????????????? | | #??????????????????????????????????????????????? | | #??????????????????????????????????????????????? | | #??????????????????????????????????????????????? | +----------------------------------------------------+ Best States ------------- Heat Dissipation 35 Energy Generation 10 Energy Capacity 250 Matter Stores 300 Matter Capacity 300 Sight Range 16 Terrain Scan Range 14 Terrain Scan Density 10 Armor Coverage 150 Evasion (%) 44 Recoil Reduction 2 Item Schematics ----------------- None Robot Schematics ------------------ None Fabricated ------------ Nothing Alien Tech Used ----------------- None Achievements -------------- None Challenges ------------ None Game ------ Seed NetworkSpliceStabilizer Manual? 0 Play Time 00:24:21 Cumulative 16.5 hours Start 2024.05.08 @ 09:36:49 End 2024.05.08 @ 10:00:10 Sessions 1 Manual Loads 0 Difficulty Rogue Special Mode None Game No. 10 Rogue 9 Adventurer 1 Explorer 0 Win Type - Total 0 Types 0/0/0/0/0/0/0/0/0 Lore% 18 Gallery% 23 Achievement% 21 Wizard Run 0 Options --------- Layout 1 ASCII 0 Keyboard 0 Movement Mouse Keybinds 0 Fullscreen 1 Font 36/X11++ Map View 50x40 Zoom Use 0% Tactical HUD 1 Map Filters NONE Filters NONE Steam 0 RUN: 1ebe58d9-c082-4bc1-af6a-562deb37278d